Cogmind - Beta 11 *** ADVENTURER MODE // 2022.04.10 @ 05:02:37 Player: Ms Vella Result: Self-destructed Performance ------------- Evolutions (1) 500 Regions Visited (3) 600 Robots Destroyed (21) 105 Value Destroyed (519) 519 Prototype IDs (3) 60 Alien Tech Used (0) 0 Bonus (132) 132 TOTAL SCORE: 1916 Bonus ------- Follower Combat Kills 152 Friendly Fire -20 Cogmind --------- Core Integrity 210/400 Matter 92/300 Energy 20/100 System Corruption 0% Temperature Danger (477) Movement Core (750) Ox14 Location -9/Materials Parts ------- > --- POWER (1) -------- (None) > --- PROPULSION (3) --- (None) > --- UTILITY (3) ------ High-capacity Storage Unit Structural Scanner > --- WEAPON (2) ------- Light EM Pulse Cannon > --- INVENTORY (20) --- Light Nuclear Core Aluminum Leg Aluminum Leg Carbon-fiber Leg Large Storage Unit High-capacity Storage Unit Cargo Storage Unit High-capacity Battery (250) High-capacity Battery (250) High-capacity Matter Pod (200) Improved Light Armor Plating Small Laser Mace Peak State ------------ > --- POWER ------------ Ion Engine > --- PROPULSION ------- Aluminum Leg Aluminum Leg Improved Aluminum Leg > --- UTILITY ---------- High-capacity Storage Unit Structural Scanner Seismic Detector > --- WEAPON ----------- Improved Light Cannon Improved Light Cannon > --- INVENTORY -------- Light Nuclear Core Aluminum Leg Aluminum Leg Carbon-fiber Leg Large Storage Unit High-capacity Storage Unit Cargo Storage Unit High-capacity Battery High-capacity Battery High-capacity Matter Pod Improved Light Armor Plating Small Laser Light EM Pulse Cannon Mace [Rating: 14] Favorites ----------- Power Ion Engine Engine Ion Engine Propulsion Aluminum Leg Leg Aluminum Leg Utility Structural Scanner Device Structural Scanner Storage High-capacity Storage Unit Weapon Improved Light Cannon Energy Cannon Light EM Pulse Cannon Ballistic Gun Assault Rifle Ballistic Cannon Improved Light Cannon Build | -11 -10 -10 -9 ------- Run | Scr Mat Min Mat Slots Evolved 2 | . . . 2 Power . | . . . . Propulsion 1 | . . . 1 Utility 1 | . . . 1 Weapon . | . . . . Parts Attached 16 | . 4 1 11 Power 1 | . . . 1 Engine 1 | . . . 1 Core . | . . . . Reactor . | . . . . Propulsion 7 | . . 1 6 Treads . | . . . . Leg 7 | . . 1 6 Wheel . | . . . . Hover . | . . . . Flight . | . . . . Utility 3 | . 2 . 1 Device 2 | . 1 . 1 Storage 1 | . 1 . . Processor . | . . . . Hackware . | . . . . Protection . | . . . . Artifact . | . . . . Weapon 5 | . 2 . 3 Energy Gun . | . . . . Energy Cannon 1 | . . . 1 Ballistic Gun . | . . . . Ballistic Cannon 4 | . 2 . 2 Launcher . | . . . . Special Weapon . | . . . . Impact Weapon . | . . . . Slashing Weapon . | . . . . Piercing Weapon . | . . . . Special Melee Weapon . | . . . . Unidentified Prototypes . | . . . . Parts Lost 13 | . . . 13 Power 2 | . . . 2 Propulsion 6 | . . . 6 Utility 1 | . . . 1 Weapon 4 | . . . 4 Highest Loss Streak 8 | . . . 8 To Critical Strikes 1 | . . . 1 Average Slot Usage (%) 97 | . 99 100 81 Engine 13 | . 14 14 10 Leg 27 | . 28 28 25 Device 14 | . 13 14 17 Storage 13 | . 14 14 11 Ballistic Gun 7 | . 18 . . Ballistic Cannon 19 | . 9 28 16 Naked Turns . | . . . . Heaviest Build 55 | 14 54 54 55 Greatest Support 33 | 20 20 20 33 Greatest Overweight (x) 5 | . 2 2 5 Average Overweight (x) 1 | . 1 2 1 Largest Inventory Capacity 20 | 8 20 20 20 Average Capacity 18 | 8 17 20 20 Most Carried 17 | 5 10 15 17 Average Carried 9 | 4 3 12 14 Final Capacity 20 | 8 20 20 20 Final Carried 14 | 2 10 14 14 Class Distribution -------------------- 97% | Mutant Dominant Class ---------------- Mutant | -10/Materials Mutant | -10/Mines Mutant | -9/Materials Resources | -11 -10 -10 -9 ----------- Run | Scr Mat Min Mat Matter Collected 772 | 200 288 215 69 Remotely . | . . . . Salvage Created 319 | . 59 51 209 Parts 30 | . 3 6 21 Haulers Intercepted . | . . . . Recyclers Shooed . | . . . . Parts Field Recycled . | . . . . Retrieved Matter . | . . . . Parts Self-Destructed . | . . . . Prevented . | . . . . Kills | -11 -10 -10 -9 ------- Run | Scr Mat Min Mat Combat Hostiles Destroyed 24 | . 2 12 10 Cannons 24 | . 2 12 10 Classes Destroyed 7 | . 1 2 4 Worker 1 | . . . 1 Operator 1 | . . . 1 Watcher 1 | . . . 1 Swarmer 8 | . . 6 2 Grunt 9 | . 2 . 7 Duelist 1 | . . . 1 Assembled 6 | . . 6 . Best Kill Streak 8 | . 2 5 8 Combat Bots Only 5 | . 2 5 4 Max Kills in Single Turn 1 | . 1 1 1 Gunslinging . | . . . . Exploded . | . . . . Melee . | . . . . Uniques/NPCs Destroyed . | . . . . Combat | -11 -10 -10 -9 -------- Run | Scr Mat Min Mat Damage Taken 1612 | . 32 454 1126 Core 231 | . 8 33 190 Absorbed by Shields . | . . . . Core Remaining (%) 91 | 100 . 83 . Volleys Fired 67 | . 7 26 34 Largest 2 | . 2 2 2 Hottest 78 | . 78 78 78 Shots Fired 126 | . 14 52 60 Gun 8 | . 8 . . Cannon 118 | . 6 52 60 Launcher . | . . . . Special . | . . . . Kinetic 124 | . 14 52 58 Thermal . | . . . . Explosive . | . . . . Electromagnetic 2 | . . . 2 Robot Hit Streak 12 | . 4 7 12 Robot Miss Streak 3 | . 1 3 2 Penetration Max . | . . . . Secondary Targets . | . . . . Shots Hit Robots 73 | . 6 25 42 Core Hits 32 | . 2 15 15 Critical Kills . | . . . . Critical Parts Destroyed . | . . . . Critical Strikes 4 | . 1 . 3 Blast 4 | . 1 . 3 Melee Attacks . | . . . . Impact . | . . . . Slashing . | . . . . Piercing . | . . . . Sneak Attacks . | . . . . Combat Hostiles . | . . . . Follow-up Attacks . | . . . . Damage Inflicted 1627 | . 110 571 946 Guns 21 | . 21 . . Cannons 1587 | . 85 556 946 Explosions . | . . . . Melee . | . . . . Ramming 19 | . 4 15 . Kinetic 1563 | . 106 556 901 Thermal . | . . . . Explosive . | . . . . Electromagnetic 45 | . . . 45 Impact . | . . . . Slashing . | . . . . Piercing . | . . . . Highest Corruption . | . . . . Average Corruption . | . . . . Corruption Purged . | . . . . Corruption Blocked . | . . . . Overload Shots . | . . . . Overflow Damage 12 | . . . 12 Projectiles 12 | . . . 12 Explosions . | . . . . Melee . | . . . . Knockbacks 22 | . . 9 13 Impact 1 | . . 1 . Kinetic 17 | . . 6 11 Secondary 4 | . . 2 2 Self-Inflicted Damage . | . . . . Shots . | . . . . Rammed . | . . . . Targets Rammed 7 | . 1 6 . Kicked 7 | . 1 6 . Crushed . | . . . . Highest Temperature 456 | . 66 90 456 Average Temperature 78 | . 35 29 130 Received Heat Transfer 714 | . 24 51 639 Effects 4 | . . . 4 Shutdowns 1 | . . . 1 Damage (major) 3 | . . . 3 Siege Activations . | . . . . Robots Corrupted . | . . . . Combat Hostiles . | . . . . Parts Fried . | . . . . Impact Corruptions . | . . . . Robots Melted . | . . . . Combat Hostiles . | . . . . Parts Melted . | . . . . Heat Transferred . | . . . . Parts Sabotaged . | . . . . Parts Stolen . | . . . . Parts Stripped . | . . . . Power Chain Reactions . | . . . . Missiles Intercepted . | . . . . Alert | -11 -10 -10 -9 ------- Run | Scr Mat Min Mat Peak Influence 251 | . 87 148 251 Initial . | . . . . Average 29 | . 9 35 81 Maximum Alert Level 1 | . . . 1 Low Security (%) 99 | 100 100 100 96 Level 1 . | . . . 3 Level 2 . | . . . . Level 3 . | . . . . Level 4 . | . . . . Level 5 . | . . . . High Security . | . . . . Max Security . | . . . . Squads Dispatched 5 | . 2 . 3 Investigation 2 | . 2 . . Extermination . | . . . . Reinforcement 3 | . . . 3 Assault . | . . . . Garrison . | . . . . Intercept . | . . . . Searches Triggered . | . . . . Construction Impeded . | . . . . Haulers Reinforced . | . . . . Active Scanning Responses . | . . . . Cargo Convoy Interrupts . | . . . . Stealth | -11 -10 -10 -9 --------- Run | Scr Mat Min Mat Distress Signals 4 | . 2 . 2 Communications Jammed . | . . . . Distress Signals . | . . . . Times Spotted 63 | . 5 34 24 Peak Tracking Total 19 | . 3 19 10 Tactical Retreats . | . . . . Traps | -11 -10 -10 -9 ------- Run | Scr Mat Min Mat Traps Triggered 1 | . 1 . . Indirectly . | . . . . Trap Hack Attempts . | . . . . Triggered . | . . . . Disarmed . | . . . . Reprogrammed . | . . . . Reused . | . . . . Traps Extracted . | . . . . Installed . | . . . . Triggered . | . . . . Machines | -11 -10 -10 -9 ---------- Run | Scr Mat Min Mat Machines Disabled 4 | . 2 . 2 Max in Single Turn 1 | . 1 . 1 Machines Sabotaged . | . . . . Garrisons Compromised . | . . . . Overloaded Fab Kills . | . . . . Hacking | -11 -10 -10 -9 --------- Run | Scr Mat Min Mat Machines Accessed 6 | . 5 . 1 Terminals 6 | . 5 . 1 Fabricators . | . . . . Repair Stations . | . . . . Recycling Units . | . . . . Scanalyzers . | . . . . Garrison Access . | . . . . Total Hacks 17 | . 16 . 1 Successful 13 | . 12 . 1 Failed 4 | . 4 . . Catastrophic . | . . . . Database Lockouts . | . . . . Manual 8 | . 8 . . Terminals 17 | . 16 . 1 Fabricators . | . . . . Repair Stations . | . . . . Recycling Units . | . . . . Scanalyzers . | . . . . Garrison Access . | . . . . Terminal Hacks 10 | . 9 . 1 Prototype ID Bank 2 | . 2 . . Emergency Access Points 1 | . 1 . . Repair Station Index 1 | . 1 . . Scanalyzer Index 1 | . 1 . . Alert Level 1 | . . . 1 Zone Layout 4 | . 4 . . Fabricator Hacks . | . . . . Repair Station Hacks . | . . . . Recycling Unit Hacks . | . . . . Scanalyzer . | . . . . Garrison Access Hacks . | . . . . Unauthorized Hacks 3 | . 3 . . Terminals 3 | . 3 . . Botnet 3 | . 3 . . Fabricators . | . . . . Repair Stations . | . . . . Recycling Units . | . . . . Scanalyzers . | . . . . Garrison Access . | . . . . Data Cores Recovered . | . . . . Used . | . . . . Hacking Detections 4 | . 3 . 1 Full Trace Events . | . . . . Feedback Events . | . . . . Feedback Blocked . | . . . . Robot Schematics Acquired . | . . . . Robots Built . | . . . . Authchips . | . . . . Time . | . . . . Total Robot Build Rating . | . . . . Part Schematics Acquired . | . . . . Parts Built . | . . . . Authchips . | . . . . Time . | . . . . Total Part Build Rating . | . . . . Parts Repaired . | . . . . Time . | . . . . Parts Recycled . | . . . . Recycled Matter . | . . . . Retrieved Matter . | . . . . Retrieved Components . | . . . . Parts Scanalyzed . | . . . . Part Schematics Acquired . | . . . . Parts Damaged . | . . . . Bothacking | -11 -10 -10 -9 ------------ Run | Scr Mat Min Mat Used RIF Installer . | . . . . Robots Hacked . | . . . . Non-combat . | . . . . Combat . | . . . . Robot Hacks Applied . | . . . . Relay Couplers Released . | . . . . Fabnet Peak Effective % . | . . . . Robots Rewired . | . . . . Allies Hacked . | . . . . Hacks Repelled . | . . . . Allies | -11 -10 -10 -9 -------- Run | Scr Mat Min Mat Total Allies 3 | . . 3 . Largest Group 3 | . . 3 1 Highest-Rated Group 73 | . . 73 11 Highest-Rated Ally 31 | . . 31 11 Total Orders . | . . . . Ally Attacks 16 | . . 16 . Total Damage 297 | . . 297 . Kills 7 | . . 7 . Allies Corrupted . | . . . . Allies Melted . | . . . . Intel | -11 -10 -10 -9 ------- Run | Scr Mat Min Mat Robot Analysis Total . | . . . . Derelict Logs Recovered 1 | . . 1 . Drone Launches . | . . . . Drone Recoveries . | . . . . Exploration | -11 -10 -10 -9 ------------- Run | Scr Mat Min Mat Turns Passed 3942 | 2 1597 1956 387 Spaces Moved 1550 | 1 733 698 118 Core . | . . . . Treads . | . . . . Legs 1550 | 1 733 698 118 Wheels . | . . . . Hover . | . . . . Flight . | . . . . Fastest Speed 120 | 120 120 260 190 Average Speed 232 | 120 207 260 225 Slowest Speed 470 | 120 260 260 470 Overloaded Moves . | . . . . Propulsion Burnouts . | . . . . Robots Hopped . | . . . . Cave-ins Triggered . | . . . . Exploration Rate (%) 51 | 2 90 99 15 Regions Visited 3 Branch Regions 1 Pre-discovered Areas 2 | . . 2 . Known Exits Taken . | . . . . Unknown Exits Taken 3 | 1 1 1 . Scrap Searched 1 | . . 1 . Spaces Dug . | . . . . Terrain Destroyed 4 | . . 3 1 Melee . | . . . . Projectile 4 | . . 3 1 AOE . | . . . . Terrain Rammed . | . . . . Walls Destroyed . | . . . . Machines Disabled . | . . . . Actions | -11 -10 -10 -9 --------- Run | Scr Mat Min Mat Total 1757 | 4 797 779 177 Wait 95 | . 43 43 9 Move 1547 | . 732 697 118 Hop . | . . . . Pick Up 16 | . 7 5 4 Fast Attach 7 | . 3 . 4 Attach 5 | . . . 5 Detach . | . . . . Swap 4 | . 1 1 2 Drop 9 | 4 3 1 1 Fire 67 | . 7 26 34 Melee . | . . . . Ram . | . . . . Kick 7 | . 1 6 . Crush . | . . . . Escape Stasis . | . . . . Rewire . | . . . . Trap . | . . . . Miscellaneous . | . . . . Route ------- -11/Scrapyard -10/Materials (discovered 5 exits: *Mat x3 / [*Min x2]) -10/Mines (discovered 3 exits: *Mat x2 / [*Exi]) -9/Materials History --------- Turn | Location | Event 3 | -11/Scrapyard | Discovered new exit (range 0) 3 | -11/Scrapyard | Entered Materials 113 | -10/Materials | Met 8R-AWN 154 | -10/Materials | Discovered new exit (range 15) 214 | -10/Materials | Discovered new exit (range 7) 305 | -10/Materials | Build established: Mutant 330 | -10/Materials | Discovered new exit (range 15) 962 | -10/Materials | Discovered new exit (range 20) 1260 | -10/Materials | Discovered new exit (range 6) 1600 | -10/Materials | Entered Mines 1601 | -10/Mines | Followed 8R-AWN into the Mines 1967 | -10/Mines | Discovered new exit (range 4) 1968 | -10/Mines | Escorted by a lone wolf Derelict 2194 | -10/Mines | Assembled infested the area 2199 | -10/Mines | Assisted by a Guerilla fighting off Assembled 2845 | -10/Mines | Discovered new exit (range 11) 2900 | -10/Mines | Learned location of Mines (-9) 2910 | -10/Mines | Discovered new exit (range 5) 3281 | -10/Mines | Learned location of Storage (-7) 3556 | -10/Mines | Entered Materials 3556 | -9/Materials | Accompanied by 1 ally 3556 | -9/Materials | Evolved 2 slots: Propulsion x1, Utility x1 3687 | -9/Materials | Lost 3 parts (1p1n1w) 3943 | -9/Materials | Self-destructed Last Messages --------------- 03923_ G-34 Mercenary destroyed. 03927_ Power failure, Ion Engine shutdown. 03927_ G-34 Mercenary knocked back. 03928_ Ion Engine destroyed. 03930_ G-34 Mercenary destroyed. 03933_ S-10 Pest destroyed. 03934_ Imp. Light Cannon destroyed. 03935_ K-01 Serf collects debris. 03936_ S-10 Pest destroyed. 03937_ Overheating: Imp. Aluminum Leg damaged (-10). 03937_ Overheating: Aluminum Leg damaged (-24). 03937_ Overheating: Imp. Light Cannon damaged (-2). 03937_ Imp. Light Cannon destroyed. 03937_ K-01 Serf collects debris. 03937_ Critical hit (Destroy). 03937_ Imp. Aluminum Leg destroyed. 03938_ Aluminum Leg destroyed. 03938_ K-01 Serf collects debris. 03940_ Aluminum Leg destroyed. 03940_ K-01 Serf collects debris. Map ----- +----------------------------------------------------+ | ?????????????????????????????????????????###!! | | ?????????????????????????????????????????##! | | ???????????????????############??????????##! | | ???????????????????######################## | | ???????????????????## ##############! | | ???????????????????## """"" # #####!! | | ???????????????????## """"" # ########% | | ???????????????????## """"" # ##?##### | | ???????????????????## # ##????## | | ???????????????????## """"" + """ """ ##????## | | ???????????????????## """"" # """ """ ##????##! | | ???????????????????## """"" # """ """ ##???### % | | ???????????????????## # ######## %= | | ???????????????????###+##+##+####+############! *% | | ???????????????????### = % | | ????????????????????## *% !% | | ??????????????????#### %= | | ??????????????????####/############+### #### | | ??????????????????## ##### # ######+# | | ??????????????????## ##?## [ # # | | ??????????????????## [[= ##?## # # | | ??????????????????## [[!! ##?## "Y" # # | | ??????????????????## [*%=%##### """ # # | | ?????????????????### = [%%############# # """ "" | | ?????????????????#######+## %=[ k # """ "" | | ???????????????? ## =!*@ % %%*% % [ # """ "" | | ???????????????? #T !%k* %%" # | | ???????????????? ## % % g %"" ######## | | ???????????????? ## g "" # # | | ?????????????????## #####g g " # ?????? | | ?????????????????=%k ####" "" # ?????? | | ??????????????? %s%s ?????? g "?? # ?????? | | ???????????? k ??????? """????????????? | | ????????????##+######??????? o """????????????? | | ????????????# T ##??????? "?????????????? | | ????????????????????????????? % ?????????????? | | ????????????????????????????? ????????????? | | ?????????????????????????????? ??????????????? | | ??????????????????????????????t ????????????????? | | ?????????????????????????????????????????????????? | | ?????????????????????????????????????????????????? | | ?????????????????????????????????????????????????? | | ?????????????????????????????????????????????????? | | ?????????????????????????????????????????????????? | | ?????????????????????????????????????????????????? | | ?????????????????????????????????????????????????? | | ?????????????????????????????????????????????????? | | ?????????????????????????????????????????????????? | | ?????????????????????????????????????????????????? | | ?????????????????????????????????????????????????? | +----------------------------------------------------+ Best States ------------- Heat Dissipation 28 Energy Generation 10 Energy Capacity 250 Matter Stores 300 Matter Capacity 300 Sight Range 16 Terrain Scan Density 10 Resistance: KI 20 Resistance: TH 20 Resistance: EX 20 Resistance: EM 20 Resistance: I 20 Resistance: S 20 Resistance: P 20 Evasion (%) 55 Offensive Hacking 10 Item Schematics ----------------- None Robot Schematics ------------------ None Fabricated ------------ Nothing Alien Tech Used ----------------- None Achievements -------------- None Challenges ------------ None Game ------ Seed MobileActuatorTreads Manual? 0 Play Time 00:19:58 Cumulative 877.9 hours Start 2022.04.10 @ 04:04:09 End 2022.04.10 @ 05:02:37 Sessions 1 Manual Loads 0 Difficulty Adventurer Special Mode None Game No. 173 Rogue 1 Adventurer 172 Explorer 0 Win Type - Total 3 Types 3/0/0/0/0/0/0/0/0 Lore% 67 Gallery% 80 Achievement% 63 Wizard Run 0 Options --------- ASCII 0 Keyboard 0 Movement Mouse Keybinds 0 Fullscreen 0 Font 16/SmallcapsGlow Map View 76x50 Tactical HUD 1 Map Filters NONE Filters BRIGHTNESS(100)|SATURATION(100)|LOW_CONTRAST(13,24,33) Steam 1 RUN: 4ac99c92-6b40-4882-ab07-9f507f66c74e